[Event "Chess Stars Match"]
[Site "Teatro Capri, Paterna, Spain"]
[Date "2019.12.15"]
[Round "5.2"]
[White "Hamitevici, Vladimir"]
[Black "Vallejo Pons, Francisco"]
[Result "1-0"]
[TimeControl "7m+3s"]
[WhiteTitle "GM"]
[BlackTitle "GM"]
[WhiteFideId "13902393"]
[BlackFideId "2205530"]
[WhiteElo "2453"]
[BlackElo "2704"]

1. b3 {[%clk 00:03:05]} {[%emt 00:03:52]} g6 {[%clk 00:03:04]} {[%emt
00:00:03]} 2. Bb2 {[%emt 00:00:03]} Nf6 3. g3 {[%clk 00:03:06]} {[%emt
00:00:03]} Bg7 {[%clk 00:03:05]} {[%emt 00:00:03]} 4. Bg2 {[%clk 00:03:08]} d5
{[%clk 00:03:04]} {[%emt 00:00:05]} 5. Nf3 {[%clk 00:03:07]} {[%emt 00:00:04]}
c5 {[%clk 00:03:03]} {[%emt 00:00:04]} 6. c4 {[%clk 00:03:06]} {[%emt
00:00:04]} d4 {[%clk 00:03:03]} {[%emt 00:00:03]} 7. b4 {[%clk 00:03:04]}
{[%emt 00:00:05]} Nc6 {[%emt 00:00:38]} 8. b5 {[%clk 00:02:45]} {[%emt
00:00:09]} Na5 {[%clk 00:02:37]} {[%emt 00:00:07]} 9. d3 {[%clk 00:02:47]}
{[%emt 00:00:01]} O-O {[%clk 00:02:20]} {[%emt 00:00:20]} 10. O-O {[%clk
00:02:48]} {[%emt 00:00:02]} Re8 {[%clk 00:02:18]} {[%emt 00:00:06]} 11. Nbd2
{[%clk 00:02:00]} {[%emt 00:00:51]} e5 {[%clk 00:02:15]} {[%emt 00:00:05]} 12.
Nb3 {[%clk 00:02:02]} {[%emt 00:00:01]} Qc7 {[%clk 00:02:05]} {[%emt 00:00:14]}
13. Nfd2 {[%clk 00:01:51]} {[%emt 00:00:14]} Rb8 {[%clk 00:01:54]} {[%emt
00:00:13]} 14. Nxa5 {[%clk 00:01:38]} {[%emt 00:00:16]} Qxa5 {[%clk 00:01:56]}
{[%emt 00:00:01]} 15. a4 {[%clk 00:01:36]} {[%emt 00:00:06]} h5 {[%clk
00:01:44]} {[%emt 00:00:14]} 16. h3 {[%clk 00:00:39]} {[%emt 00:01:00]} Bf5
{[%clk 00:01:43]} {[%emt 00:00:04]} 17. Nb3 {[%clk 00:00:32]} {[%emt 00:00:10]}
Qc7 {[%clk 00:01:44]} {[%emt 00:00:02]} 18. Bc1 {[%clk 00:00:22]} {[%emt
00:00:13]} b6 {[%clk 00:01:29]} {[%emt 00:00:17]} 19. a5 {[%clk 00:00:24]}
{[%emt 00:00:01]} Rbd8 {[%clk 00:01:13]} {[%emt 00:00:19]} 20. axb6 {[%clk
00:00:25]} {[%emt 00:00:02]} axb6 {[%clk 00:01:15]} {[%emt 00:00:01]} 21. Ra6
{[%clk 00:00:27]} Bc8 {[%clk 00:01:07]} {[%emt 00:00:11]} 22. Ra4 {[%clk
00:00:28]} {[%emt 00:00:01]} Qd7 {[%clk 00:00:32]} {[%emt 00:00:39]} 23. Bg5
{[%clk 00:00:25]} {[%emt 00:00:07]} Qf5 {[%clk 00:00:29]} {[%emt 00:00:06]} 24.
Bxf6 {[%clk 00:00:14]} {[%emt 00:00:13]} Qxf6 {[%clk 00:00:25]} {[%emt
00:00:07]} 25. Nd2 {[%clk 00:00:15]} {[%emt 00:00:03]} Qe7 {[%clk 00:00:20]}
{[%emt 00:00:08]} 26. Qa1 {[%clk 00:00:14]} {[%emt 00:00:04]} Bh6 {[%clk
00:00:20]} {[%emt 00:00:03]} 27. Rd1 {[%clk 00:00:12]} {[%emt 00:00:05]} f5
{[%clk 00:00:12]} {[%emt 00:00:11]} 28. Ra7 {[%clk 00:00:14]} {[%emt 00:00:01]}
Rd7 {[%clk 00:00:14]} {[%emt 00:00:01]} 29. Ra8 {[%clk 00:00:14]} {[%emt
00:00:02]} Rd6 {[%clk 00:00:10]} {[%emt 00:00:07]} 30. Bc6 {[%clk 00:00:14]}
{[%emt 00:00:03]} Rf8 {[%clk 00:00:11]} {[%emt 00:00:02]} 31. Ra7 {[%clk
00:00:16]} {[%emt 00:00:01]} Qd8 {[%clk 00:00:10]} {[%emt 00:00:05]} 32. Nf3
{[%clk 00:00:09]} {[%emt 00:00:09]} Qf6 {[%clk 00:00:09]} {[%emt 00:00:04]} 33.
Rc7 {[%clk 00:00:10]} {[%emt 00:00:02]} e4 {[%clk 00:00:06]} {[%emt 00:00:05]}
34. dxe4 {[%clk 00:00:07]} {[%emt 00:00:06]} fxe4 {[%clk 00:00:08]} {[%emt
00:00:01]} 35. Bxe4 {[%clk 00:00:09]} {[%emt 00:00:02]} Bxh3 {[%clk 00:00:09]}
{[%emt 00:00:02]} 36. Qa7 {[%clk 00:00:08]} {[%emt 00:00:04]} Be6 {[%clk
00:00:06]} {[%emt 00:00:06]} 37. Bd5 {[%clk 00:00:06]} {[%emt 00:00:05]} Bxd5
{[%clk 00:00:07]} {[%emt 00:00:02]} 38. cxd5 {[%clk 00:00:08]} {[%emt
00:00:01]} Rxd5 {[%clk 00:00:08]} {[%emt 00:00:01]} 39. Rc6 {[%clk 00:00:10]}
Rd6 {[%clk 00:00:04]} {[%emt 00:00:07]} 40. Qxb6 {[%clk 00:00:11]} {[%emt
00:00:02]} Rxc6 {[%clk 00:00:06]} {[%emt 00:00:01]} 41. Qxc6 {[%clk 00:00:11]}
{[%emt 00:00:03]} Qxc6 {[%clk 00:00:06]} {[%emt 00:00:03]} 42. bxc6 {[%clk
00:00:13]} {[%emt 00:00:01]} Rc8 {[%clk 00:00:08]} {[%emt 00:00:01]} 43. Ne5
{[%clk 00:00:12]} {[%emt 00:00:05]} Bg7 {[%clk 00:00:09]} {[%emt 00:00:02]} 44.
Nxg6 {[%clk 00:00:13]} {[%emt 00:00:02]} Kf7 {[%clk 00:00:11]} {[%emt
00:00:01]} 45. Nf4 {[%clk 00:00:13]} {[%emt 00:00:03]} Rxc6 {[%clk 00:00:11]}
{[%emt 00:00:03]} 46. Nxh5 {[%clk 00:00:15]} {[%emt 00:00:01]} c4 {[%clk
00:00:13]} 47. Nxg7 {[%clk 00:00:15]} {[%emt 00:00:03]} Kxg7 {[%clk 00:00:04]}
{[%emt 00:00:12]} 48. Rxd4 {[%clk 00:00:17]} {[%emt 00:00:01]} Kf6 {[%clk
00:00:04]} {[%emt 00:00:03]} 49. Rd1 {[%clk 00:00:15]} {[%emt 00:00:06]} c3
{[%clk 00:00:05]} 50. Kf1 {[%clk 00:00:15]} {[%emt 00:00:04]} Ke5 {[%clk
00:00:07]} {[%emt 00:00:02]} 51. e3 {[%clk 00:00:14]} {[%emt 00:00:03]} Ra6
{[%clk 00:00:07]} {[%emt 00:00:03]} 52. Rc1 {[%clk 00:00:15]} {[%emt 00:00:02]}
Ra3 {[%clk 00:00:05]} {[%emt 00:00:04]} 53. Ke2 {[%clk 00:00:14]} {[%emt
00:00:05]} Ra2+ {[%clk 00:00:06]} {[%emt 00:00:02]} 54. Kf3 {[%clk 00:00:13]}
{[%emt 00:00:03]} Ra3 {[%clk 00:00:08]} 55. g4 {[%clk 00:00:14]} {[%emt
00:00:02]} Rb3 {[%clk 00:00:10]} {[%emt 00:00:02]} 56. Rc2 {[%clk 00:00:12]}
{[%emt 00:00:04]} Ra3 {[%clk 00:00:11]} {[%emt 00:00:02]} 57. g5 {[%clk
00:00:14]} {[%emt 00:00:01]} Kf5 {[%clk 00:00:13]} {[%emt 00:00:02]} 58. Ke2
{[%clk 00:00:15]} {[%emt 00:00:02]} Kxg5 {[%clk 00:00:13]} {[%emt 00:00:03]} 59.
Kd3 {[%clk 00:00:17]} Kg4 {[%clk 00:00:14]} {[%emt 00:00:02]} 60. Rxc3 {[%clk
00:00:17]} {[%emt 00:00:03]} Ra1 {[%clk 00:00:14]} {[%emt 00:00:03]} 61. Rc4+
{[%clk 00:00:19]} {[%emt 00:00:02]} Kg5 {[%clk 00:00:14]} {[%emt 00:00:03]} 62.
Rc5+ {[%clk 00:00:19]} {[%emt 00:00:03]} Kg4 {[%clk 00:00:15]} {[%emt
00:00:01]} 63. Rc4+ {[%clk 00:00:15]} {[%emt 00:00:08]} Kg5 {[%clk 00:00:16]}
{[%emt 00:00:02]} 64. Ke4 {[%clk 00:00:14]} {[%emt 00:00:03]} Kg4 {[%clk
00:00:16]} {[%emt 00:00:05]} 65. Ke5+ {[%clk 00:00:13]} {[%emt 00:00:05]} Kf3
{[%clk 00:00:17]} {[%emt 00:00:01]} 66. Rf4+ {[%clk 00:00:14]} {[%emt
00:00:01]} Ke2 {[%clk 00:00:19]} {[%emt 00:00:01]} 67. Kf5 {[%clk 00:00:10]}
{[%emt 00:00:07]} Ra5+ {[%clk 00:00:20]} {[%emt 00:00:03]} 68. Kg6 {[%clk
00:00:09]} {[%emt 00:00:03]} Ra6+ {[%clk 00:00:20]} {[%emt 00:00:03]} 69. Kg5
{[%clk 00:00:09]} {[%emt 00:00:03]} Ra5+ {[%clk 00:00:21]} {[%emt 00:00:02]} 70.
Rf5 {[%clk 00:00:11]} {[%emt 00:00:01]} Ra4 {[%clk 00:00:23]} {[%emt 00:00:01]}
71. Kf6 {[%clk 00:00:10]} {[%emt 00:00:03]} Re4 {[%clk 00:00:23]} {[%emt
00:00:03]} 72. Rf4 {[%clk 00:00:12]} {[%emt 00:00:02]} Re8 {[%clk 00:00:23]}
{[%emt 00:00:03]} 73. e4 {[%clk 00:00:13]} {[%emt 00:00:01]} Rf8+ {[%clk
00:00:24]} {[%emt 00:00:03]} 74. Ke5 {[%clk 00:00:13]} {[%emt 00:00:02]} Re8+
{[%clk 00:00:23]} {[%emt 00:00:04]} 75. Kd6 {[%clk 00:00:15]} {[%emt 00:00:02]}
Kd3 {[%clk 00:00:24]} {[%emt 00:00:02]} 76. e5 {[%clk 00:00:15]} {[%emt
00:00:02]} Rd8+ {[%clk 00:00:24]} {[%emt 00:00:03]} 77. Ke7 {[%clk 00:00:15]}
{[%emt 00:00:03]} Rd5 {[%clk 00:00:24]} {[%emt 00:00:03]} 78. e6 {[%clk
00:00:16]} {[%emt 00:00:02]} 1-0

[Event "Chess Stars Match"]
[Site "Teatro Capri, Paterna, Spain"]
[Date "2019.12.15"]
[Round "5.3"]
[White "Injac, Teodora"]
[Black "Arizmendi Martinez, Julen Luis"]
[Result "0-1"]
[TimeControl "7m+3s"]
[WhiteTitle "WIM"]
[BlackTitle "GM"]
[WhiteFideId "932400"]
[BlackFideId "2205092"]
[WhiteElo "2284"]
[BlackElo "2511"]

1. d4 {[%clk 00:04:04]} {[%emt 00:00:02]} Nf6 {[%clk 00:03:00]} {[%emt
00:00:07]} 2. Nf3 {[%clk 00:04:06]} e6 {[%clk 00:02:52]} {[%emt 00:00:10]} 3.
e3 {[%clk 00:04:08]} d5 {[%clk 00:02:47]} {[%emt 00:00:09]} 4. Bd3 {[%clk
00:04:09]} {[%emt 00:00:02]} c5 {[%clk 00:02:48]} 5. b3 {[%clk 00:04:10]}
{[%emt 00:00:02]} Nc6 {[%clk 00:02:40]} {[%emt 00:00:12]} 6. O-O {[%clk
00:04:10]} {[%emt 00:00:03]} cxd4 {[%clk 00:02:16]} {[%emt 00:00:27]} 7. exd4
{[%clk 00:04:12]} {[%emt 00:00:01]} Bd6 {[%clk 00:02:15]} {[%emt 00:00:04]} 8.
Re1 {[%clk 00:03:59]} {[%emt 00:00:16]} O-O {[%clk 00:02:07]} {[%emt 00:00:11]}
9. c3 {[%clk 00:03:09]} {[%emt 00:00:52]} Qc7 {[%clk 00:01:32]} {[%emt
00:00:39]} 10. Qe2 {[%clk 00:03:10]} {[%emt 00:00:02]} Nd7 {[%clk 00:01:34]}
{[%emt 00:00:01]} 11. c4 {[%clk 00:02:26]} {[%emt 00:00:48]} e5 {[%clk
00:01:12]} {[%emt 00:00:25]} 12. cxd5 {[%clk 00:01:57]} {[%emt 00:00:31]} Nxd4
{[%clk 00:01:14]} 13. Nxd4 {[%clk 00:01:52]} {[%emt 00:00:08]} exd4 {[%clk
00:01:16]} {[%emt 00:00:01]} 14. Na3 {[%clk 00:01:12]} {[%emt 00:00:42]} Bxh2+
{[%emt 00:00:20]} 15. Kh1 Be5 {[%clk 00:00:52]} {[%emt 00:00:10]} 16. Nc4
{[%clk 00:00:59]} {[%emt 00:00:20]} Bf6 {[%clk 00:00:48]} {[%emt 00:00:06]} 17.
Ba3 {[%clk 00:00:49]} {[%emt 00:00:13]} b5 {[%clk 00:00:39]} {[%emt 00:00:12]}
18. Bd6 {[%clk 00:00:40]} {[%emt 00:00:12]} Qb7 {[%clk 00:00:36]} {[%emt
00:00:06]} 19. Na5 {[%clk 00:00:36]} {[%emt 00:00:07]} Qb6 {[%clk 00:00:14]}
{[%emt 00:00:26]} 20. Bxf8 {[%clk 00:00:36]} {[%emt 00:00:03]} Qxa5 {[%clk
00:00:16]} {[%emt 00:00:01]} 21. Bd6 {[%clk 00:00:34]} {[%emt 00:00:05]} g6
{[%clk 00:00:13]} {[%emt 00:00:06]} 22. Rac1 {[%clk 00:00:29]} {[%emt
00:00:07]} Kg7 {[%clk 00:00:07]} {[%emt 00:00:09]} 23. Bxb5 {[%clk 00:00:19]}
{[%emt 00:00:13]} a6 {[%clk 00:00:05]} {[%emt 00:00:05]} 24. Bc6 {[%clk
00:00:19]} {[%emt 00:00:03]} Ra7 {[%clk 00:00:08]} 25. Qe8 {[%clk 00:00:15]}
{[%emt 00:00:06]} Qd8 {[%clk 00:00:10]} {[%emt 00:00:01]} 26. Qxd8 {[%clk
00:00:17]} {[%emt 00:00:01]} Bxd8 {[%clk 00:00:12]} {[%emt 00:00:01]} 27. Re8
{[%clk 00:00:19]} {[%emt 00:00:01]} Bc7 {[%clk 00:00:14]} 28. Rxc8 {[%clk
00:00:13]} {[%emt 00:00:08]} Bxd6 {[%emt 00:00:02]} 29. Ra8 {[%clk 00:00:10]}
{[%emt 00:00:05]} Rc7 {[%clk 00:00:17]} {[%emt 00:00:02]} 30. Rxa6 {[%clk
00:00:12]} {[%emt 00:00:02]} Nf6 {[%clk 00:00:19]} {[%emt 00:00:01]} 31. Rb6
{[%clk 00:00:11]} {[%emt 00:00:04]} Nxd5 {[%clk 00:00:18]} {[%emt 00:00:04]} 32.
Rd1 {[%clk 00:00:10]} {[%emt 00:00:04]} Nxb6 {[%clk 00:00:19]} {[%emt
00:00:02]} 33. Bf3 {[%clk 00:00:11]} {[%emt 00:00:02]} Be5 {[%clk 00:00:21]}
{[%emt 00:00:01]} 34. a4 {[%clk 00:00:12]} {[%emt 00:00:02]} Rc5 {[%clk
00:00:21]} {[%emt 00:00:03]} 35. b4 {[%clk 00:00:14]} {[%emt 00:00:02]} Rc4
{[%clk 00:00:18]} {[%emt 00:00:05]} 36. a5 {[%clk 00:00:16]} {[%emt 00:00:01]}
Nc8 {[%clk 00:00:20]} {[%emt 00:00:01]} 37. b5 {[%clk 00:00:16]} {[%emt
00:00:03]} Ra4 {[%clk 00:00:20]} {[%emt 00:00:02]} 38. a6 {[%clk 00:00:08]}
{[%emt 00:00:11]} Nb6 {[%clk 00:00:20]} {[%emt 00:00:03]} 39. Rc1 {[%clk
00:00:10]} {[%emt 00:00:02]} d3 {[%clk 00:00:21]} {[%emt 00:00:02]} 40. g3
{[%clk 00:00:10]} {[%emt 00:00:02]} Ra5 {[%clk 00:00:15]} {[%emt 00:00:09]} 41.
Rb1 {[%clk 00:00:04]} {[%emt 00:00:09]} Bd4 {[%clk 00:00:12]} {[%emt 00:00:06]}
42. Kg2 {[%clk 00:00:06]} {[%emt 00:00:01]} Ra2 {[%clk 00:00:14]} 43. Rf1
{[%clk 00:00:07]} {[%emt 00:00:02]} Rb2 {[%clk 00:00:13]} {[%emt 00:00:04]} 44.
Bc6 {[%clk 00:00:08]} {[%emt 00:00:02]} Nc4 {[%clk 00:00:14]} {[%emt 00:00:02]}
45. Kh3 {[%clk 00:00:07]} {[%emt 00:00:03]} Rxf2 {[%clk 00:00:14]} {[%emt
00:00:03]} 46. Rc1 {[%clk 00:00:06]} {[%emt 00:00:05]} Ne5 {[%clk 00:00:14]}
{[%emt 00:00:03]} 0-1

[Event "Chess Stars Match"]
[Site "Teatro Capri, Paterna, Spain"]
[Date "2019.12.15"]
[Round "5.4"]
[White "Randazzo, Adrian"]
[Black "Semenova, Elena"]
[Result "0-1"]
[TimeControl "7m+3s"]
[WhiteTitle "FM"]
[BlackTitle "WIM"]
[WhiteFideId "114251"]
[BlackFideId "24125148"]
[WhiteElo "2230"]
[BlackElo "2290"]

1. e4 {[%clk 00:04:03]} {[%emt 00:00:02]} e5 {[%clk 00:04:06]} 2. Nf3 {[%clk
00:04:05]} {[%emt 00:00:02]} Nc6 {[%clk 00:04:08]} 3. Nc3 {[%clk 00:04:07]}
{[%emt 00:00:02]} Nf6 {[%clk 00:04:10]} 4. d4 {[%clk 00:04:09]} exd4 {[%clk
00:04:11]} {[%emt 00:00:03]} 5. Nxd4 {[%clk 00:04:11]} {[%emt 00:00:02]} Bb4
{[%clk 00:04:13]} 6. Nxc6 {[%clk 00:04:12]} {[%emt 00:00:02]} bxc6 {[%clk
00:04:15]} {[%emt 00:00:01]} 7. Bd3 {[%clk 00:04:11]} {[%emt 00:00:03]} d5
{[%clk 00:04:17]} {[%emt 00:00:01]} 8. exd5 {[%clk 00:04:12]} {[%emt 00:00:02]}
cxd5 {[%clk 00:04:19]} 9. O-O {[%clk 00:04:11]} {[%emt 00:00:05]} O-O {[%clk
00:04:21]} {[%emt 00:00:01]} 10. h3 {[%clk 00:04:10]} {[%emt 00:00:04]} Rb8
{[%clk 00:04:18]} {[%emt 00:00:06]} 11. Qf3 {[%clk 00:03:37]} {[%emt 00:00:35]}
Bb7 {[%clk 00:04:13]} {[%emt 00:00:09]} 12. Bg5 {[%clk 00:03:27]} {[%emt
00:00:13]} Be7 {[%clk 00:03:06]} {[%emt 00:01:10]} 13. Ne2 {[%clk 00:02:23]} h6
{[%clk 00:02:15]} {[%emt 00:02:01]} 14. Bh4 {[%clk 00:01:41]} {[%emt 00:00:45]}
Ne4 {[%emt 00:00:49]} 15. Bxe7 {[%clk 00:01:38]} Qxe7 {[%clk 00:01:36]} 16. Qe3
{[%clk 00:00:55]} {[%emt 00:00:45]} Qf6 {[%clk 00:01:33]} {[%emt 00:00:07]} 17.
Qd4 {[%clk 00:00:47]} {[%emt 00:00:11]} Qxd4 {[%clk 00:01:02]} {[%emt
00:00:34]} 18. Nxd4 {[%clk 00:00:49]} {[%emt 00:00:01]} c5 {[%clk 00:01:03]}
{[%emt 00:00:02]} 19. Nf5 {[%clk 00:00:47]} {[%emt 00:00:05]} Rfd8 {[%clk
00:00:55]} {[%emt 00:00:10]} 20. Bxe4 {[%clk 00:00:32]} {[%emt 00:00:18]} dxe4
{[%clk 00:00:56]} {[%emt 00:00:02]} 21. Rfd1 {[%clk 00:00:34]} {[%emt
00:00:01]} Kf8 {[%clk 00:00:38]} {[%emt 00:00:21]} 22. b3 {[%clk 00:00:37]} Bc6
{[%clk 00:00:25]} {[%emt 00:00:16]} 23. Ne3 {[%clk 00:00:39]} Ke7 {[%clk
00:00:24]} {[%emt 00:00:04]} 24. Kf1 {[%clk 00:00:38]} {[%emt 00:00:04]} Ke6
{[%clk 00:00:26]} 25. Ke2 {[%clk 00:00:40]} {[%emt 00:00:02]} f5 {[%clk
00:00:29]} {[%emt 00:00:01]} 26. g3 {[%clk 00:00:43]} g5 {[%clk 00:00:30]}
{[%emt 00:00:02]} 27. Rxd8 {[%clk 00:00:23]} Rxd8 {[%clk 00:00:30]} 28. Rd1
{[%clk 00:00:23]} Rxd1 {[%clk 00:00:30]} 29. Nxd1 {[%clk 00:00:23]} Ke5 {[%clk
00:00:09]} {[%emt 00:00:55]} 30. c3 {[%clk 00:00:26]} Bb5+ {[%clk 00:00:09]}
{[%emt 00:00:07]} 31. Kd2 {[%clk 00:00:25]} Bf1 {[%clk 00:00:06]} {[%emt
00:00:10]} 32. h4 {[%clk 00:00:22]} gxh4 {[%clk 00:00:08]} {[%emt 00:00:07]} 33.
gxh4 {[%clk 00:00:24]} Kf4 {[%clk 00:00:07]} {[%emt 00:00:04]} 34. Ne3 {[%clk
00:00:24]} {[%emt 00:00:03]} Ba6 {[%clk 00:00:07]} {[%emt 00:00:04]} 35. a4
{[%clk 00:00:19]} {[%emt 00:00:09]} Bc8 {[%clk 00:00:09]} 36. Nd5+ {[%clk
00:00:19]} {[%emt 00:00:03]} Kf3 {[%clk 00:00:06]} {[%emt 00:00:05]} 37. Ke1
{[%clk 00:00:18]} {[%emt 00:00:04]} Kg4 {[%clk 00:00:07]} {[%emt 00:00:02]} 38.
Ne7 {[%clk 00:00:17]} {[%emt 00:00:04]} Bd7 {[%clk 00:00:08]} {[%emt 00:00:02]}
39. Ng6 {[%clk 00:00:16]} {[%emt 00:00:04]} Be8 {[%clk 00:00:07]} {[%emt
00:00:04]} 40. Ne7 {[%clk 00:00:16]} {[%emt 00:00:03]} f4 {[%clk 00:00:08]}
{[%emt 00:00:02]} 41. a5 {[%clk 00:00:17]} {[%emt 00:00:03]} Kxh4 {[%clk
00:00:09]} {[%emt 00:00:02]} 42. Nc8 {[%clk 00:00:17]} {[%emt 00:00:03]} a6
{[%clk 00:00:10]} {[%emt 00:00:02]} 43. Nd6 {[%clk 00:00:19]} Bc6 {[%clk
00:00:11]} {[%emt 00:00:02]} 44. Nf5+ {[%clk 00:00:13]} {[%emt 00:00:09]} Kg5
{[%clk 00:00:12]} {[%emt 00:00:02]} 45. Ne7 {[%clk 00:00:15]} Bb7 {[%clk
00:00:12]} {[%emt 00:00:03]} 46. b4 {[%clk 00:00:09]} {[%emt 00:00:09]} cxb4
{[%clk 00:00:11]} {[%emt 00:00:04]} 47. cxb4 {[%clk 00:00:11]} Kf6 {[%clk
00:00:05]} {[%emt 00:00:09]} 48. b5 {[%clk 00:00:05]} {[%emt 00:00:09]} Kxe7
{[%clk 00:00:06]} {[%emt 00:00:02]} 49. bxa6 {[%clk 00:00:08]} Bxa6 {[%clk
00:00:08]} 0-1

[Event "Chess Stars Match"]
[Site "Teatro Capri, Paterna, Spain"]
[Date "2019.12.15"]
[Round "5.5"]
[White "Povshednyi, Ivan"]
[Black "Llobell Cortell, Enrique"]
[Result "0-1"]
[TimeControl "7m+3s"]
[BlackTitle "IM"]
[WhiteFideId "14190907"]
[BlackFideId "2216116"]
[WhiteElo "1795"]
[BlackElo "2401"]

1. e4 {[%clk 00:06:04]} d6 {[%clk 00:04:06]} 2. d4 {[%clk 00:06:04]} {[%emt
00:00:04]} Nf6 {[%clk 00:04:08]} 3. Nc3 {[%clk 00:06:06]} {[%emt 00:00:02]} c6
{[%clk 00:04:10]} 4. Nf3 {[%clk 00:06:04]} {[%emt 00:00:05]} Bg4 {[%clk
00:04:13]} {[%emt 00:00:01]} 5. Be2 {[%clk 00:06:06]} {[%emt 00:00:01]} e6
{[%clk 00:04:15]} 6. h3 {[%clk 00:06:08]} Bh5 {[%clk 00:04:17]} 7. O-O {[%emt
00:00:02]} d5 {[%emt 00:00:01]} 8. exd5 {[%clk 00:06:07]} {[%emt 00:00:05]}
Bxf3 {[%clk 00:04:21]} {[%emt 00:00:02]} 9. Bxf3 {[%clk 00:06:08]} {[%emt
00:00:01]} cxd5 {[%clk 00:04:23]} {[%emt 00:00:01]} 10. Bf4 {[%clk 00:06:09]}
{[%emt 00:00:02]} Nc6 {[%clk 00:04:25]} {[%emt 00:00:02]} 11. Ne2 {[%clk
00:06:04]} {[%emt 00:00:07]} Bd6 {[%clk 00:04:27]} {[%emt 00:00:01]} 12. Bxd6
{[%clk 00:06:03]} {[%emt 00:00:04]} Qxd6 {[%clk 00:04:28]} {[%emt 00:00:02]} 13.
c3 {[%clk 00:06:05]} {[%emt 00:00:02]} O-O {[%clk 00:04:27]} {[%emt 00:00:04]}
14. Qd2 {[%clk 00:06:06]} {[%emt 00:00:02]} Rfc8 {[%clk 00:04:25]} {[%emt
00:00:03]} 15. Qf4 {[%clk 00:06:08]} {[%emt 00:00:02]} Qd8 {[%clk 00:04:12]}
{[%emt 00:00:16]} 16. g4 {[%clk 00:05:58]} {[%emt 00:00:13]} Na5 {[%clk
00:04:09]} {[%emt 00:00:06]} 17. Ng3 {[%clk 00:05:53]} {[%emt 00:00:07]} Nc4
{[%clk 00:04:10]} {[%emt 00:00:03]} 18. Rab1 {[%clk 00:05:43]} {[%emt
00:00:12]} Qc7 {[%clk 00:04:05]} {[%emt 00:00:08]} 19. Qxc7 {[%clk 00:05:43]}
{[%emt 00:00:03]} Rxc7 {[%clk 00:04:07]} 20. Be2 {[%clk 00:05:44]} {[%emt
00:00:02]} Nd2 {[%clk 00:04:09]} {[%emt 00:00:02]} 21. Rbd1 {[%clk 00:05:42]}
{[%emt 00:00:04]} Nxf1 {[%clk 00:04:10]} {[%emt 00:00:02]} 22. Bxf1 {[%clk
00:05:44]} {[%emt 00:00:01]} Ne8 {[%clk 00:04:09]} {[%emt 00:00:05]} 23. f4
{[%clk 00:05:42]} {[%emt 00:00:04]} Nd6 {[%clk 00:04:11]} {[%emt 00:00:02]} 24.
Bd3 {[%clk 00:05:44]} Nc4 {[%clk 00:04:13]} {[%emt 00:00:01]} 25. Bxc4 {[%clk
00:05:46]} {[%emt 00:00:01]} Rxc4 {[%clk 00:04:15]} 26. f5 {[%clk 00:05:47]}
{[%emt 00:00:01]} b5 {[%clk 00:04:12]} {[%emt 00:00:06]} 27. fxe6 fxe6 {[%clk
00:04:14]} 28. a3 {[%clk 00:05:46]} {[%emt 00:00:05]} a5 {[%clk 00:04:16]}
{[%emt 00:00:01]} 29. Re1 {[%clk 00:05:47]} {[%emt 00:00:01]} Ra6 {[%clk
00:04:12]} {[%emt 00:00:07]} 30. Re5 {[%clk 00:05:42]} {[%emt 00:00:08]} b4
{[%clk 00:04:13]} {[%emt 00:00:03]} 31. axb4 {[%clk 00:05:43]} {[%emt
00:00:01]} axb4 {[%clk 00:04:15]} 32. Ne2 {[%clk 00:05:45]} b3 {[%clk
00:03:55]} {[%emt 00:00:24]} 33. Nf4 {[%clk 00:05:35]} {[%emt 00:00:12]} Rxc3
{[%clk 00:03:34]} {[%emt 00:00:25]} 34. bxc3 {[%clk 00:05:37]} b2 {[%clk
00:03:36]} 35. Re1 {[%clk 00:05:37]} {[%emt 00:00:02]} Ra1 {[%clk 00:03:38]}
{[%emt 00:00:01]} 36. Rxa1 {[%clk 00:05:10]} {[%emt 00:00:30]} bxa1=Q+ {[%clk
00:03:36]} {[%emt 00:00:04]} 37. Kf2 {[%clk 00:05:12]} {[%emt 00:00:01]} Qxc3
{[%clk 00:03:35]} {[%emt 00:00:05]} 38. Nxe6 {[%clk 00:05:13]} {[%emt
00:00:02]} Qc2+ {[%clk 00:03:36]} {[%emt 00:00:02]} 39. Kg3 {[%clk 00:05:13]}
{[%emt 00:00:03]} Qc3+ {[%clk 00:03:30]} {[%emt 00:00:08]} 40. Kh4 {[%clk
00:05:14]} {[%emt 00:00:03]} Qe1+ {[%clk 00:03:31]} {[%emt 00:00:02]} 0-1